fUST/lending_fUST_20240105
["ID","MTS","AMOUNT","RATE_DAILY","PERIOD"]
[310169260,1704387046146,-500.0,0.00039452,7]
[310169261,1704387046155,-500.0,0.00039452,7]
[310169263,1704387046165,-353.73508503,0.00039452,7]
[310169265,1704387046174,-500.0,0.00039452,7]
[310169266,1704387046183,-896.8,0.00039452,7]
[310169267,1704387046192,-500.0,0.00039452,7]
[310169268,1704387046201,-500.0,0.00039452,7]
[310169269,1704387046210,-500.0,0.00039452,7]
[310169271,1704387046220,-598.72,0.00039452,7]
[310169272,1704387046229,-1132.41,0.00039452,7]
[310169275,1704387046238,-2752.55,0.00039452,7]
[310169277,1704387046247,-718.93,0.00039452,7]
[310169278,1704387046257,-500.0,0.00039452,7]
[310169280,1704387046266,-500.0,0.00039452,7]
[310169282,1704387046275,-505.01,0.00039452,7]
[310169285,1704387046286,-503.19,0.00039452,7]
[310169288,1704387046295,-692.89,0.00039452,7]
[310169290,1704387046304,-599.32,0.00039452,7]
[310169293,1704387046313,-500.0,0.00039452,7]
[310169296,1704387046322,-500.0,0.00039452,7]
[310169300,1704387046331,-500.0,0.00039452,7]
[310169301,1704387046341,-500.0,0.00039452,7]
[310169305,1704387046351,-500.0,0.00039452,7]
[310169308,1704387046360,-644.96,0.00039452,7]
[310169313,1704387046373,-2849.28,0.00039452,7]
[310169316,1704387046382,-635.84,0.00039452,7]
[310169318,1704387046392,-500.0,0.00039452,7]
[310169321,1704387046402,-500.0,0.00039452,7]
[310169323,1704387046411,-8871.8,0.00039452,7]
[310169325,1704387046420,-2935.13,0.00039452,7]
[310169327,1704387046430,-500.0,0.00039452,7]
[310169329,1704387046439,-605.54,0.00039452,7]
[310169332,1704387046448,-500.0,0.00039452,7]
[310169335,1704387046457,-334.82887596,0.00039452,7]
[310169339,1704387046467,-371.54584407,0.00039452,7]
[310169342,1704387046477,-500.0,0.00039452,7]
[310169345,1704387046486,-500.0,0.00039452,7]
[310169347,1704387046496,-500.0,0.00039452,7]
[310169350,1704387046505,-500.0,0.00039452,7]
[310169352,1704387046515,-500.0,0.00039452,7]
[310169354,1704387046524,-500.0,0.00039452,7]
[310169356,1704387046533,-21719.59,0.00039452,7]
[310169358,1704387046543,-571.94961747,0.00039452,7]
[310169360,1704387046552,-500.0,0.00039452,7]
[310169362,1704387046561,-964.52,0.00039452,7]
[310169363,1704387046571,-500.0,0.00039452,7]
[310169365,1704387046580,-6170.24,0.00039452,7]
[310169368,1704387046590,-622.8,0.00039452,7]
[310169369,1704387046601,-500.0,0.00039452,7]
[310169371,1704387046611,-500.0,0.00039452,7]
[310169373,1704387046620,-2831.26,0.00039452,7]
[310169375,1704387046629,-1907.99,0.00039452,7]
[310169377,1704387046639,-500.0,0.00039452,7]
[310169379,1704387046648,-500.0,0.00039452,7]
[310169381,1704387046658,-1011.31,0.00039452,7]
[310169384,1704387046667,-920.84,0.00039452,7]
[310169385,1704387046677,-5276.43,0.00039452,7]
[310169387,1704387046687,-500.0,0.00039452,7]
[310169390,1704387046701,-690.57,0.00039452,7]
[310169392,1704387046710,-500.0,0.00039452,7]
[310169394,1704387046720,-500.0,0.00039452,2]
[310169395,1704387046730,-1924.31,0.00039452,7]
[310169397,1704387046740,-735.13,0.00039452,7]
[310169399,1704387046750,-1202.16,0.00039452,7]
[310169401,1704387046759,-500.0,0.00039452,7]
[310169403,1704387046769,-167.83,0.00039547,2]
[310169405,1704387046778,-167.83,0.00039547,2]
[310169407,1704387046787,-167.83,0.00039547,2]
[310169409,1704387046796,-167.83,0.00039547,2]
[310169411,1704387046806,-167.83,0.00039547,2]
[310169413,1704387046816,-167.83,0.00039547,2]
[310169415,1704387046825,-167.83,0.00039547,2]
[310169417,1704387046834,-167.83,0.00039547,2]
[310169419,1704387046844,-167.83,0.00039547,2]
[310169421,1704387046854,-167.83,0.00039547,2]
[310169423,1704387046864,-167.83,0.00039547,2]
[310169425,1704387046873,-167.83,0.00039547,2]
[310169427,1704387046883,-167.83,0.00039547,2]
[310169429,1704387046892,-167.83,0.00039547,2]
[310169431,1704387046901,-167.83,0.00039547,2]
[310169433,1704387046910,-167.83,0.00039547,2]
[310169435,1704387046919,-167.83,0.00039547,2]
[310169437,1704387046930,-167.83,0.00039547,2]
[310169438,1704387046939,-167.83,0.00039547,2]
[310169441,1704387046949,-167.83,0.00039547,2]
[310169442,1704387046958,-500.0,0.00039726,7]
[310169444,1704387046968,-500.0,0.00039726,7]
[310169446,1704387046977,-500.0,0.00039726,7]
[310169448,1704387046986,-754.09,0.00039726,7]
[310169450,1704387046995,-629.17072785,0.00039726,7]
[310169452,1704387047005,-500.0,0.00039726,7]
[310169454,1704387047014,-681.78,0.00039726,7]
[310169456,1704387047023,-1926.28,0.00039726,7]
[310169458,1704387047033,-500.0,0.00039726,7]
[310169460,1704387047042,-500.0,0.00039726,7]
[310169462,1704387047051,-964.73,0.00039726,7]
[310169464,1704387047061,-1537.72,0.00039726,7]
[310169466,1704387047070,-500.0,0.00039726,7]
[310169468,1704387047079,-500.0,0.00039726,7]
[310169470,1704387047087,-500.0,0.00039726,2]
[310169472,1704387047097,-500.0,0.00039726,7]
[310169474,1704387047106,-500.0,0.00039726,7]
[310169476,1704387047116,-433.16916227,0.00039726,7]
[310169478,1704387047125,-650.32,0.00039726,7]
[310169480,1704387047134,-566.85,0.00039726,7]
[310169482,1704387047143,-500.0,0.00039726,7]
[310169484,1704387047153,-500.0,0.00039726,7]
[310169486,1704387047162,-648.37,0.00039726,7]
[310169488,1704387047171,-507.98184178,0.00039726,7]
[310169490,1704387047181,-500.0,0.00039726,7]
[310169492,1704387047190,-1065.29,0.00039726,7]
[310169494,1704387047199,-500.0,0.00039726,7]
[310169496,1704387047208,-666.35,0.00039726,7]
[310169498,1704387047217,-563.75336502,0.00039726,7]
[310169500,1704387047227,-500.0,0.00039726,7]
[310169502,1704387047237,-500.0,0.00039726,7]
[310169504,1704387047247,-2464.0,0.00039726,7]
[310169506,1704387047256,-500.0,0.00039726,7]
[310169508,1704387047265,-1464.28,0.00039726,7]
[310169510,1704387047274,-500.0,0.00039726,7]
[310169512,1704387047283,-500.0,0.00039726,7]
[310169514,1704387047293,-500.0,0.00039726,7]
[310169516,1704387047303,-896.8,0.00039726,7]
[310169518,1704387047313,-512.33784381,0.00039726,7]
[310169520,1704387047322,-500.0,0.00039726,7]
[310169522,1704387047331,-500.0,0.00039726,7]
[310169524,1704387047340,-598.72,0.00039726,7]
[310169526,1704387047350,-1132.41,0.00039726,7]
[310169528,1704387047360,-2752.55,0.00039726,7]
[310169530,1704387047369,-718.93,0.00039726,7]
[310169532,1704387047378,-500.0,0.00039726,7]
[310169534,1704387047390,-506.44860106,0.00039726,7]
[310169535,1704387047399,-505.01,0.00039726,7]
[310169538,1704387047409,-503.19,0.00039726,7]
[310169539,1704387047419,-692.89,0.00039726,7]
[310169541,1704387047428,-599.32,0.00039726,7]
[310169543,1704387047437,-500.0,0.00039726,7]
[310169545,1704387047447,-500.0,0.00039726,7]
[310169547,1704387047456,-500.0,0.00039726,7]
[310169549,1704387047465,-500.0,0.00039726,7]
[310169551,1704387047475,-500.0,0.00039726,7]
[310169554,1704387047485,-644.96,0.00039726,7]
[310169555,1704387047494,-2849.28,0.00039726,7]
[310169558,1704387047503,-635.84,0.00039726,7]
[310169559,1704387047513,-500.0,0.00039726,7]
[310169562,1704387047523,-500.0,0.00039726,7]
[310169563,1704387047532,-8871.8,0.00039726,7]
[310169565,1704387047541,-2935.13,0.00039726,7]
[310169567,1704387047553,-500.0,0.00039726,7]
[310169569,1704387047563,-605.54,0.00039726,7]
[310169571,1704387047572,-500.0,0.00039726,7]
[310169573,1704387047581,-500.0,0.00039726,7]
[310169575,1704387047590,-500.0,0.00039726,7]
[310169577,1704387047601,-500.0,0.00039726,7]
[310169579,1704387047611,-500.0,0.00039726,7]
[310169582,1704387047620,-500.0,0.00039726,7]
[310169584,1704387047630,-500.0,0.00039726,7]
[310169586,1704387047640,-21719.59,0.00039726,7]
[310169588,1704387047649,-500.0,0.00039726,7]
[310169590,1704387047658,-964.52,0.00039726,7]
[310169592,1704387047667,-500.0,0.00039726,7]
[310169593,1704387047677,-6170.24,0.00039726,7]
[310169596,1704387047686,-622.8,0.00039726,7]
[310169597,1704387047695,-500.0,0.00039726,7]
[310169599,1704387047705,-500.0,0.00039726,7]
[310169602,1704387047715,-2831.26,0.00039726,7]
[310169604,1704387047725,-1907.99,0.00039726,7]
[310169605,1704387047734,-500.0,0.00039726,7]
[310169607,1704387047743,-500.0,0.00039726,7]
[310169610,1704387047753,-1011.31,0.00039726,7]
[310169611,1704387047763,-920.84,0.00039726,7]
[310169613,1704387047772,-5276.43,0.00039726,7]
[310169614,1704387047782,-690.57,0.00039726,7]
[310169615,1704387047791,-500.0,0.00039726,7]
[310169616,1704387047801,-500.0,0.00039726,7]
[310169617,1704387047810,-562.26380155,0.00039726,2]
[310169618,1704387047819,-1924.31,0.00039726,7]
[310169619,1704387047830,-735.13,0.00039726,7]
[310169620,1704387047839,-1202.16,0.00039726,7]
[310169621,1704387047851,-500.0,0.00039726,7]
[310169622,1704387047861,-60028.87725279,0.0003977,30]
[310169623,1704387047870,-4033.11945537,0.0003999,4]
[310169624,1704387047880,-154.7215013,0.0004,4]
[310169625,1704387047890,-154.7215013,0.0004,4]
[310169626,1704387047899,-1278.70257121,0.0004,4]
[310169628,1704387047909,-1012.64571571,0.0004,2]
[310169630,1704387047919,-26537.58906736,0.0004,4]
[310169632,1704387047928,-1939.2533293,0.0004,30]
[310169634,1704387047937,-2282.550306,0.0004,4]
[310169636,1704387047947,-919.40923462,0.0004,2]
[310169638,1704387047956,-157.35924597,0.0004,4]
[310169640,1704387047965,-290.35547366,0.0004,4]
[310169642,1704387047974,-19691.33425249,0.0004,2]
[310169644,1704387047984,-277.23692751,0.0004,4]
[310169646,1704387047994,-500.0,0.0004,7]
[310169648,1704387048003,-500.0,0.0004,7]
[310169650,1704387048013,-20490.03949407,0.0004,5]
[310169652,1704387048022,-500.0,0.0004,7]
[310169654,1704387048031,-754.09,0.0004,7]
[310169656,1704387048041,-500.0,0.0004,7]
[310169658,1704387048050,-681.78,0.0004,7]
[310169660,1704387048059,-1926.28,0.0004,7]
[310169662,1704387048068,-500.0,0.0004,7]
[310169664,1704387048078,-500.0,0.0004,7]
[310169666,1704387048087,-964.73,0.0004,7]
[310169668,1704387048098,-1537.72,0.0004,7]
[310169670,1704387048107,-500.0,0.0004,7]
[310169672,1704387048116,-500.0,0.0004,7]
[310169674,1704387048126,-500.0,0.0004,2]
[310169676,1704387048135,-500.0,0.0004,7]
[310169677,1704387048144,-500.0,0.0004,7]
[310169679,1704387048153,-650.32,0.0004,7]
[310169681,1704387048162,-566.85,0.0004,7]
[310169683,1704387048172,-500.0,0.0004,7]
[310169685,1704387048182,-500.0,0.0004,7]
[310169687,1704387048191,-648.37,0.0004,7]
[310169689,1704387048200,-500.0,0.0004,7]
[310169691,1704387048209,-1065.29,0.0004,7]
[310169693,1704387048218,-500.0,0.0004,7]
[310169695,1704387048227,-666.35,0.0004,7]
[310169697,1704387048236,-500.0,0.0004,7]
[310169699,1704387048246,-500.0,0.0004,7]
[310169701,1704387048255,-2464.0,0.0004,7]
[310169703,1704387048264,-448.84574139,0.0004,7]
[310169705,1704387048273,-1464.28,0.0004,7]
[310169707,1704387048283,-500.0,0.0004,7]
[310169709,1704387048293,-500.0,0.0004,7]
[310169711,1704387048302,-500.0,0.0004,7]
[310169713,1704387048311,-896.8,0.0004,7]
[310169715,1704387048320,-500.0,0.0004,7]
[310169717,1704387048330,-500.776886,0.0004,7]
[310169719,1704387048339,-598.72,0.0004,7]
[310169721,1704387048348,-1132.41,0.0004,7]
[310169723,1704387048357,-2752.55,0.0004,7]
[310169725,1704387048367,-718.93,0.0004,7]
[310169727,1704387048376,-500.0,0.0004,7]
[310169729,1704387048387,-505.01,0.0004,7]
[310169731,1704387048397,-503.19,0.0004,7]
[310169733,1704387048406,-692.89,0.0004,7]
[310169735,1704387048415,-599.32,0.0004,7]
[310169737,1704387048424,-500.0,0.0004,7]
[310169739,1704387048433,-500.0,0.0004,7]
[310169741,1704387048442,-500.0,0.0004,7]
[310169743,1704387048451,-500.0,0.0004,7]
[310169744,1704387048460,-500.0,0.0004,7]
[310169746,1704387048470,-644.96,0.0004,7]
[310169748,1704387048480,-2849.28,0.0004,7]
[310169749,1704387048489,-635.84,0.0004,7]
[310169750,1704387048498,-569.39021834,0.0004,7]
[310169751,1704387048507,-500.0,0.0004,7]
[310169752,1704387048516,-8871.8,0.0004,7]
[310169753,1704387048525,-2935.13,0.0004,7]
[310169754,1704387048534,-500.0,0.0004,7]
[310169755,1704387048543,-605.54,0.0004,7]
[310169756,1704387048643,-500.0,0.0004,7]
[310169757,1704387048654,-500.0,0.0004,7]
[310169758,1704387048663,-500.0,0.0004,7]
[310169759,1704387048672,-500.0,0.0004,7]
[310169760,1704387048681,-500.0,0.0004,7]
[310169761,1704387048691,-500.0,0.0004,7]
[310169762,1704387048700,-500.0,0.0004,7]
[310169763,1704387048710,-21719.59,0.0004,7]
[310169764,1704387048719,-186.85583458,0.0004,7]
[310169765,1704387048728,-964.52,0.0004,7]
[310169766,1704387048737,-500.0,0.0004,7]
[310169767,1704387048747,-6170.24,0.0004,7]
[310169768,1704387048757,-622.8,0.0004,7]
[310169769,1704387048766,-500.0,0.0004,7]
[310169770,1704387048775,-500.0,0.0004,7]
[310169771,1704387048785,-2831.26,0.0004,7]
[310169772,1704387048794,-1907.99,0.0004,7]
[310169773,1704387048803,-500.0,0.0004,7]
[310169774,1704387048812,-506.37017112,0.0004,7]
[310169775,1704387048822,-1011.31,0.0004,7]
[310169776,1704387048831,-920.84,0.0004,7]
[310169777,1704387048841,-5276.43,0.0004,7]
[310169779,1704387048851,-690.57,0.0004,7]
[310169781,1704387048860,-500.0,0.0004,7]
[310169782,1704387048870,-641.20255986,0.0004,7]
[310169784,1704387048879,-1924.31,0.0004,7]
[310169786,1704387048889,-735.13,0.0004,7]
[310169788,1704387048899,-1202.16,0.0004,7]
[310169790,1704387048908,-500.0,0.0004,7]
[310169792,1704387048918,-150.71364408,0.00040255,4]
[310169794,1704387048927,-500.0,0.00040273,7]
[310169796,1704387048937,-500.0,0.00040273,7]
[310169798,1704387048947,-754.09,0.00040273,7]
[310169800,1704387048956,-500.0,0.00040273,7]
[310169802,1704387048965,-681.78,0.00040273,7]
[310169804,1704387048974,-1926.28,0.00040273,7]
[310169806,1704387048984,-500.0,0.00040273,7]
[310169808,1704387048993,-500.0,0.00040273,7]
[310169810,1704387049003,-964.73,0.00040273,7]
[310169812,1704387049012,-1537.72,0.00040273,7]
[310169814,1704387049022,-500.0,0.00040273,7]
[310169816,1704387049031,-500.0,0.00040273,7]
[310169818,1704387049040,-500.0,0.00040273,2]
[310169820,1704387049050,-500.0,0.00040273,7]
[310169822,1704387049059,-500.0,0.00040273,7]
[310169824,1704387049068,-650.32,0.00040273,7]
[310169826,1704387049078,-566.85,0.00040273,7]
[310169828,1704387049088,-386.36505742,0.00040273,7]
[310169830,1704387049098,-500.0,0.00040273,7]
[310169831,1704387049107,-648.37,0.00040273,7]
[310169833,1704387049116,-500.0,0.00040273,7]
[310169835,1704387049125,-1065.29,0.00040273,7]
[310169837,1704387049135,-322.23628335,0.00040273,7]
[310169839,1704387049144,-666.35,0.00040273,7]
[310169841,1704387049153,-500.0,0.00040273,7]
[310169843,1704387049162,-500.0,0.00040273,7]
[310169845,1704387049171,-2464.0,0.00040273,7]
[310169847,1704387049180,-1464.28,0.00040273,7]
[310169849,1704387049190,-500.0,0.00040273,7]
[310169851,1704387049200,-500.0,0.00040273,7]
[310169853,1704387049209,-500.0,0.00040273,7]
[310169854,1704387049218,-896.8,0.00040273,7]
[310169856,1704387049228,-500.0,0.00040273,7]
[310169858,1704387049237,-598.72,0.00040273,7]
[310169860,1704387049246,-1127.80933707,0.00040273,7]
[310169898,1704387049612,-1049.82427488,0.00035,4]
[310171032,1704387937101,-230.18795146,0.00023972,2]
[310171033,1704387937123,-154.75239617,0.00023973,4]
[310171034,1704387937142,-2027.50790733,0.00023997,2]
[310171035,1704387937164,-6289.04332654,0.00023998,2]
[310171036,1704387937185,-300.0,0.00029,14]
[310171037,1704387937205,-166.6666668,0.00029156,2]
[310171038,1704387937227,-544.575995,0.000305,15]
[310171039,1704387937248,-52.27368745,0.00030543,2]
[310171041,1704388028142,-462.67808244,0.0003054,4]
[310171042,1704388028167,-1774.96700701,0.00030541,4]
[310171043,1704388028193,-121.52184855,0.00030543,2]
[310171044,1704388028218,-3900.21932879,0.00030726,2]
[310171076,1704388153081,-154.75239617,0.00030768,5]
[310171077,1704388153102,-629.8191312,0.00030769,2]
[310171078,1704388153124,-159.383762,0.00031841,2]
[310171079,1704388153146,-6861.72839717,0.00032,10]
[310171080,1704388153165,-230.0045009,0.00032063,2]
[310171081,1704388153188,-8690.5216614,0.00032142,2]
[310171082,1704388153208,-4094.70333044,0.000325,15]
[310171083,1704388153228,-545.80261496,0.00033,2]
[310171085,1704388165111,-200.0,0.00033798,15]
[310171086,1704388165132,-685.53559507,0.00033999,4]
[310171087,1704388165154,-5098.64374236,0.00034,2]
[310171088,1704388166163,-12130.64251944,0.00034,2]
[310171089,1704388166184,-1000.0,0.00034107,7]
[310171090,1704388166203,-305.0140847,0.00034108,4]
[310171091,1704388166231,-12.00211015,0.00034108,4]
[310171092,1704388168416,154.75239617,0.00034108,5]
[310171095,1704388190342,154.75239617,0.00034108,5]
[310171097,1704388206348,154.75239617,0.00034108,5]
[310171100,1704388224350,154.75239617,0.00034108,5]
[310171164,1704388232507,-3519.18377026,0.000349,2]
[310171166,1704388232516,-590.45108746,0.00035,2]
[310171168,1704388232525,-332.07950254,0.00035442,4]
[310171170,1704388232534,-1454.89912219,0.00035443,14]
[310171172,1704388232543,-3539.86097792,0.00035444,2]
[310171174,1704388232553,-519.0,0.00035452,2]
[310171175,1704388232562,-320.790123,0.00035616,120]
[310171178,1704388232572,-176.0,0.00036,2]
[310171180,1704388232581,-1000.0,0.00037,37]
[310171182,1704388232593,-155.0,0.00037,2]
[310171184,1704388232603,-620.00243712,0.00037345,2]
[310171186,1704388232612,-176.0,0.00037397,2]
[310171187,1704388232622,-188.36165155,0.0003786,2]
[310171189,1704388232632,-2116.79,0.0003789,3]
[310171191,1704388232641,-1000.0,0.00037898,7]
[310171193,1704388232651,-1232.56547556,0.00037899,4]
[310171195,1704388232660,-225.62209347,0.000379,2]
[310171197,1704388232669,-41666.35365455,0.000379,2]
[310171683,1704388243091,-4035.95,0.00037,2]
[310171685,1704388243101,-6000.0,0.00037,2]
[310171687,1704388243111,-4.07990622,0.0003789,3]
[310171817,1704388244358,154.75239617,0.00034108,5]
[310171977,1704388246080,-6000.0,0.0003718,2]
[310171979,1704388246090,-526.57984341,0.0003736,2]
[310172079,1704388247102,247.22457109,0.00034108,2]
[310172167,1704388247976,282.15862485,0.00034108,3]
[310172703,1704388254639,219.05321341,0.00034108,4]
[310173080,1704388258738,409.17699443,0.00034108,2]
[310173430,1704388262155,1024.53484358,0.00034108,2]
[310173463,1704388262471,154.75239617,0.00034108,5]
[310173987,1704388267958,281.49830138,0.00034108,3]
[310174794,1704388276211,1024.53484358,0.00034108,2]
[310174896,1704388280606,1814.26014117,0.00034108,5]
[310174897,1704388280725,409.17699443,0.00034108,2]
[310174898,1704388284361,154.75239617,0.00034108,5]
[310174899,1704388296506,768.79202074,0.00034108,5]
[310174900,1704388302117,168.85613352,0.00034108,2]
[310174901,1704388302353,154.75239617,0.00034108,5]
[310174902,1704388302744,409.17699443,0.00034108,2]
[310174903,1704388322433,154.75239617,0.00034108,5]
[310174904,1704388324740,409.17699443,0.00034108,2]
[310174905,1704388342740,227.16124238,0.00034108,2]
[310174906,1704388344354,154.75239617,0.00034108,5]
[310174907,1704388535962,3370.17064279,0.00025,7]
[310174921,1704389140103,-154.73694719,0.00025077,4]
[310174922,1704389140125,-679.56551195,0.00025077,2]
[310174923,1704389140145,-508.50377759,0.00025078,2]
[310174924,1704389140167,-150.0,0.00025086,4]
[310174925,1704389140189,-1000.0,0.00034059,7]
[310174926,1704389140212,-264.0629283,0.0003406,2]
[310174927,1704389140236,-1706.8021501,0.0003421,2]
[310174928,1704389140256,-342.467266,0.00034231,2]
[310174929,1704389140279,-188.909166,0.00034247,2]
[310174930,1704389140299,-188.909166,0.00034247,120]
[310174931,1704389140319,-171.3108442,0.00034466,2]
[310174932,1704389140340,-190.0,0.00034518,2]
[310174933,1704389140361,-1472.01644843,0.00034996,4]
[310174937,1704389352103,-154.73694719,0.00033999,5]
[310174938,1704389352125,-500.0,0.00034,7]
[310174939,1704389352147,-845.26305281,0.00034,7]
[310174940,1704389371128,-154.73694719,0.00034,7]
[310174941,1704389371150,-142.88891182,0.00034018,5]
[310174942,1704389372105,-11.83258948,0.00034018,5]
[310174943,1704389372126,-1615.5977627,0.00034996,4]
[310174944,1704389372146,-1072.39778292,0.00034998,4]
[310174945,1704389372165,-154.75239617,0.00035,30]
[310174946,1704389372185,-500.0,0.00035,7]
[310174947,1704389372204,-590.45108746,0.00035,2]
[310174948,1704389372223,-2789.76072599,0.00035,2]
[310175052,1704389435238,-154.7215013,0.00034018,5]
[310175054,1704389435249,-240.92226219,0.00035,2]
[310175190,1704389438224,-509.17798974,0.00035,2]
[310175192,1704389438235,-4278.82706661,0.00035,4]
[310175194,1704389438245,-170.48794373,0.00035,30]
[310175197,1704389438256,-250.0,0.00035248,2]
[310175199,1704389438265,-343.461787,0.00035616,120]
[310175201,1704389438275,-304.26772343,0.000358,2]
[310175203,1704389438284,-532.0,0.00035973,2]
[310175205,1704389438293,-500.0,0.00036,7]
[310175207,1704389438302,-155.0,0.000369,2]
[310175209,1704389438311,-500.0,0.00037,7]
[310175211,1704389438320,-1597.21978623,0.00037138,4]
[310175213,1704389438330,-3473.50900465,0.0003714,4]
[310175214,1704389438339,-167.83,0.00037356,2]
[310175216,1704389438349,-167.83,0.00037356,2]
[310175219,1704389438359,-167.83,0.00037356,2]
[310175221,1704389438368,-167.83,0.00037356,2]
[310175223,1704389438377,-167.83,0.00037356,2]
[310175225,1704389438387,-167.83,0.00037356,2]
[310175227,1704389438397,-167.83,0.00037356,2]
[310175229,1704389438406,-167.83,0.00037356,2]
[310175231,1704389438416,-167.83,0.00037356,2]
[310175233,1704389438425,-167.83,0.00037356,2]
[310175235,1704389438435,-167.83,0.00037356,2]
[310175237,1704389438444,-167.83,0.00037356,2]
[310175239,1704389438454,-167.83,0.00037356,2]
[310175241,1704389438463,-167.83,0.00037356,2]
[310175243,1704389438472,-167.83,0.00037356,2]
[310175245,1704389438481,-167.83,0.00037356,2]
[310175247,1704389438491,-167.83,0.00037356,2]
[310175249,1704389438500,-167.83,0.00037356,2]
[310175251,1704389438510,-167.83,0.00037356,2]
[310175253,1704389438520,-167.83,0.00037356,2]
[310175255,1704389438530,-5473.42015659,0.0003736,2]
[310175257,1704389438541,-6000.0,0.0003754,2]
[310175259,1704389438550,-6000.0,0.0003772,2]
[310175261,1704389438560,-212.32781083,0.00037798,2]
[310175263,1704389438570,-1000.0,0.00037799,7]
[310175265,1704389438579,-78980.6876799,0.000378,2]
[310175267,1704389438589,-492.84919818,0.0003786,4]
[310175269,1704389438599,-279.1617338,0.00037898,4]
[310175271,1704389438608,-338.07515572,0.00037898,4]
[310175273,1704389438618,-349.58261299,0.00037898,14]
[310175275,1704389438628,-164.10478437,0.00037898,4]
[310175277,1704389438639,-300.90710515,0.00037898,4]
[310175279,1704389438649,-154.87609912,0.00037898,4]
[310175281,1704389438659,-183.07133364,0.00037898,4]
[310175283,1704389438669,-155.30154661,0.00037898,6]
[310175285,1704389438678,-285.30351426,0.00037898,4]
[310175287,1704389438688,-239.4661869,0.00037898,4]
[310175289,1704389438697,-154.84515485,0.00037898,2]
[310175291,1704389438707,-389.73857023,0.00037898,4]
[310175293,1704389438716,-155.99188799,0.00037898,4]
[310175295,1704389438725,-508.50377759,0.00037898,4]
[310175297,1704389438735,-1996.64314445,0.00037899,4]
[310175299,1704389438744,-2475.23241513,0.00037899,2]
[310175301,1704389438753,-2196.24,0.000379,2]
[310175303,1704389438762,-39873.28510524,0.000379,2]
[310175305,1704389438772,-320.00087649,0.00037996,2]
[310175307,1704389438782,-390.45705087,0.00037996,4]
[310175309,1704389438791,-197.67966796,0.00037997,4]
[310175311,1704389438800,-2265.31841529,0.00037997,4]
[310175313,1704389438809,-2987.87026641,0.00037998,4]
[310175315,1704389438819,-1092.48017214,0.00037998,4]
[310175317,1704389438828,-154.84515485,0.00037998,4]
[310175319,1704389438838,-155.04953248,0.00037998,2]
[310175321,1704389438847,-273.22384269,0.00037998,4]
[310175323,1704389438857,-7921.03715204,0.00037998,2]
[310175325,1704389438869,-1440.49666533,0.00037998,4]
[310175327,1704389438879,-680.1564,0.00037998,4]
[310175329,1704389438889,-511.49884029,0.00037998,2]
[310175331,1704389438898,-176.22443073,0.00037998,4]
[310175333,1704389438907,-318.60863626,0.00037998,4]
[310175335,1704389438916,-1573.77393442,0.00037998,4]
[310175337,1704389438925,-6536.43197787,0.00037998,4]
[310175339,1704389438934,-297.0513033,0.00037998,4]
[310175341,1704389438943,-212.61910187,0.00037998,4]
[310175343,1704389438952,-366.94747299,0.00037998,4]
[310175345,1704389438961,-155.19581211,0.00037998,4]